bitfinex/quotes_ETHUSD_20250702
["timestamp","ask_amount","ask_price","bid_price","bid_amount"]
[1751482103466,0.01,2585.4,2585.3,31.18873904]
[1751482103666,0.01,2585.4,2585.3,31.73873904]
[1751482104372,0.01,2585.4,2585.3,21.68473904]
[1751482104588,0.01,2585.4,2585.3,31.73773904]
[1751482107484,0.01,2585.4,2585.3,32.54823904]
[1751482110815,0.01,2585.4,2585.3,60.08632204]
[1751482111011,0.2170752,2585.7,2585.6,46.19923015]
[1751482111242,0.2170752,2585.7,2585.6,50.80573839]
[1751482111425,0.2170752,2585.7,2585.6,53.29461021]
[1751482111837,0.2170752,2585.7,2585.6,50.99853839]
[1751482112054,0.7766,2586.8,2586.4,3.86628756]
[1751482112260,3.86442625,2587.8,2585.7,13.86742468]
[1751482112261,0.8224,2587.0,2586.6,13.86606216]
[1751482112479,0.8224,2587.0,2586.7,0.1928]
[1751482112613,0.1928,2586.9,2586.6,2.006]
[1751482112812,0.8224,2586.8,2586.6,20.067]
[1751482113745,0.8224,2586.8,2586.6,20.35362049]
[1751482115163,0.8224,2586.8,2586.7,0.1928]
[1751482115336,0.7873,2587.0,2586.7,2.22816205]
[1751482115660,0.7873,2587.0,2586.8,8.07]
[1751482115863,0.7873,2587.0,2586.6,10.28662049]
[1751482116037,0.7873,2587.0,2586.6,0.47942049]
[1751482116237,0.7873,2587.0,2586.7,8.07]
[1751482116468,1.69520959,2586.9,2586.6,2.2048]
[1751482116627,0.9517,2586.8,2586.5,8.07]
[1751482117368,0.7589,2586.7,2586.5,8.068]
[1751482117566,0.7589,2586.6,2586.3,2.012]
[1751482117851,0.1928,2586.5,2586.3,2.012]
[1751482118041,0.9517,2586.6,2586.3,2.012]
[1751482118938,0.7589,2586.2,2585.5,2.012]
[1751482119142,0.9517,2586.2,2585.5,0.1928]
[1751482119472,4.66661811,2586.4,2585.5,0.1928]
[1751482119473,0.7589,2585.9,2585.5,0.1928]
[1751482119961,0.7589,2585.9,2585.5,8.2658]
[1751482120159,0.7589,2585.9,2585.5,0.1928]
[1751482121084,0.7589,2585.9,2585.4,10.3772548]
[1751482121379,0.7589,2585.9,2585.4,0.2942548]
[1751482121578,0.7734,2585.7,2585.3,0.1928]
[1751482123582,0.7734,2585.7,2585.3,0.48382111]
[1751482123781,0.7734,2585.7,2585.3,0.1928]
[1751482124004,0.7734,2585.7,2585.3,2.2048]
[1751482124184,0.1928,2585.6,2585.3,2.012]
[1751482124389,0.79944321,2586.4,2585.3,6.90752504]
[1751482124682,0.7734,2587.5,2585.7,0.7654]
[1751482124856,10.0,2587.0,2585.9,10.0]
[1751482125051,0.7734,2586.8,2586.0,2.012]
[1751482125463,0.7734,2586.8,2586.1,10.0]
[1751482125989,0.7734,2586.8,2586.1,8.091]
[1751482126290,0.7734,2586.8,2586.2,1.0103]
[1751482126473,0.7734,2586.8,2586.3,3.86652224]
[1751482126871,0.7734,2586.8,2586.2,1.7955]
[1751482127182,0.7734,2586.8,2586.2,5.66216317]
[1751482127760,0.7734,2586.8,2586.2,1.7955]
[1751482127962,0.7734,2586.8,2586.2,5.66216484]
[1751482128161,0.7734,2586.8,2586.3,2.37531648]
[1751482129080,13.07990592,2587.8,2586.4,3.86631224]
[1751482129284,13.07990592,2587.8,2586.5,3.86622639]
[1751482129285,0.8321,2587.6,2586.5,3.86622639]
[1751482129489,0.8321,2587.5,2586.6,2.012]
[1751482131790,0.8321,2587.5,2586.6,2.30130544]
[1751482131977,0.8321,2587.5,2586.6,2.75318435]
[1751482134287,0.8318,2587.3,2586.7,2.012]
[1751482134688,0.1928,2586.9,2586.6,2.012]
[1751482138698,0.7686,2586.8,2586.6,2.012]
[1751482138990,0.7851,2586.7,2586.6,2.012]
[1751482139191,0.1928,2586.6,2586.2,9.291]
[1751482139392,4.65120207,2586.6,2586.2,9.291]
[1751482139574,1.63682669,2586.5,2586.2,9.291]
[1751482139769,1.63682669,2586.5,2585.8,0.1928]
[1751482139993,0.1928,2586.1,2585.7,2.012]
[1751482143770,0.1928,2585.9,2585.7,2.012]
[1751482144666,0.7642,2585.8,2585.7,2.012]
[1751482147104,0.78,2586.2,2585.7,2.012]
[1751482147398,0.9728,2586.2,2585.7,2.2048]
[1751482150076,0.1928,2585.9,2585.5,2.015]
[1751482150591,0.7525,2585.8,2585.5,2.015]
[1751482150794,0.9453,2585.8,2585.5,2.015]
[1751482152002,0.9453,2585.8,2585.3,10.48746358]
[1751482152172,1.19253027,2586.4,2584.9,0.02]
[1751482152173,0.7822,2585.5,2584.9,0.02]
[1751482152372,0.1928,2585.0,2584.9,0.02]
[1751482152678,0.975,2585.0,2584.9,0.02]
[1751482153802,0.1928,2585.0,2584.9,0.02]
[1751482154373,0.01,2586.8,2585.5,0.756]
[1751482154577,0.01,2586.8,2585.7,13.86732073]
[1751482154782,0.1928,2586.7,2586.2,0.1928]
[1751482157794,0.01,2586.8,2586.2,0.1928]
[1751482157995,0.1928,2586.5,2586.1,10.0]
[1751482158201,0.1928,2586.5,2586.0,10.3798]
[1751482158714,0.1928,2586.5,2586.0,0.1928]
[1751482158715,0.9499,2586.5,2586.0,0.1928]
[1751482159123,0.7571,2586.5,2585.9,10.0]
[1751482159288,0.1928,2586.3,2585.8,2.2068]
[1751482159710,0.1928,2586.3,2585.8,4.9202619]
[1751482160221,0.1928,2586.3,2585.8,8.78753428]
[1751482160398,0.7571,2586.5,2585.8,8.59473428]
[1751482160599,0.7688,2586.8,2586.0,0.8064]
[1751482160805,0.1928,2586.7,2586.2,0.1928]
[1751482161393,0.1928,2586.7,2586.2,4.05945734]
[1751482161592,0.1928,2586.7,2586.2,4.05939767]
[1751482161798,0.1928,2586.7,2586.2,0.1928]
[1751482162022,0.1928,2586.7,2586.2,4.05947531]
[1751482162204,0.1928,2586.7,2586.3,5.19781312]
[1751482163307,0.1928,2586.7,2586.3,1.33131153]
[1751482163506,0.7688,2586.8,2586.3,1.33131153]
[1751482163507,0.01,2586.8,2586.3,6.01131153]
[1751482163707,0.01,2586.8,2586.4,4.05910174]
[1751482163927,0.01,2586.8,2586.4,0.1928]
[1751482164902,0.01,2586.8,2586.4,2.21747671]
[1751482165430,0.01,2586.8,2586.6,0.1928]
[1751482167407,0.01,2586.8,2586.7,0.7724]
[1751482167728,0.01,2586.8,2586.7,4.63832956]
[1751482167936,0.01,2586.8,2586.7,4.83112956]
[1751482168227,0.01,2586.8,2586.7,5.7008541]
[1751482168636,0.01,2586.8,2586.7,20.9308541]
[1751482168837,0.2170752,2588.3,2587.1,0.7623]
[1751482169132,0.2170752,2588.3,2587.5,10.0]
[1751482169427,0.2170752,2588.3,2587.6,10.195]
[1751482169801,0.8262,2588.2,2587.6,2.014]
[1751482170202,0.8262,2588.2,2587.1,10.7623]
[1751482170418,0.8262,2588.2,2587.5,10.0]
[1751482170618,10.55,2588.0,2587.3,2.014]
[1751482170819,3.86447458,2587.7,2586.7,9.29]
[1751482171003,3.86477538,2587.5,2586.7,9.29]
[1751482171203,0.7909,2587.3,2586.7,9.29]
[1751482173552,4.656012,2587.3,2586.7,9.29]
[1751482173712,10.7909,2587.3,2586.7,9.29]
[1751482173911,14.65600901,2587.3,2586.5,2.014]
[1751482174640,3.86519799,2587.2,2586.5,2.014]
[1751482174840,1.4656098,2587.1,2586.3,0.29513895]
[1751482175031,1.4656098,2587.1,2586.2,12.063]
[1751482177239,1.4656098,2587.1,2586.2,2.063]
[1751482177441,0.8306,2587.0,2586.2,10.228]
[1751482177739,1.22962098,2586.9,2586.2,10.51501688]
[1751482178311,0.8306,2587.0,2586.2,10.51501688]
[1751482178713,0.8306,2587.0,2586.3,10.0]
[1751482179015,0.1928,2586.9,2586.4,0.1928]
[1751482180347,0.1928,2586.9,2586.4,4.05910422]
[1751482180529,0.1928,2586.9,2586.5,1.40591042]
[1751482182044,0.1928,2586.9,2586.5,5.27205357]
[1751482182218,0.1928,2586.9,2586.6,3.86607902]
[1751482182413,0.9804,2587.3,2586.8,0.1928]
[1751482183042,0.1928,2587.3,2586.8,10.1928]
[1751482183243,0.7542,2587.6,2586.9,1.48728]
[1751482183545,0.1928,2587.4,2586.9,1.68008]
[1751482183710,0.947,2587.6,2587.1,0.1928]
[1751482186345,0.7542,2587.6,2586.8,14.68]
[1751482186558,0.8081,2587.3,2586.5,4.68]
[1751482186721,0.1928,2587.1,2586.7,2.2558]
[1751482187153,3.86506123,2587.3,2586.7,2.063]
[1751482187325,0.1928,2586.9,2586.7,2.063]
[1751482187934,0.8081,2586.7,2586.4,0.02]
[1751482188140,3.86622849,2586.5,2586.4,0.02]
[1751482188337,4.41613777,2586.6,2586.4,0.02]
[1751482188544,4.67432849,2586.5,2586.4,0.02]
[1751482188735,6.3991704,2586.5,2586.4,0.02]
[1751482189133,16.3991704,2586.5,2586.4,0.02]
[1751482189445,0.7699,2585.8,2585.6,2.083]
[1751482189620,0.7699,2585.8,2585.6,0.02]
[1751482189826,4.33113446,2585.7,2585.6,0.02]
[1751482190048,5.65103446,2585.7,2585.6,0.02]
[1751482190356,15.65103446,2585.7,2585.6,0.02]
[1751482191151,15.65103446,2585.7,2585.0,0.02]
[1751482191333,0.8089,2585.1,2585.0,0.02]
[1751482191527,10.74660421,2585.1,2585.0,0.02]
[1751482195029,13.3822223,2585.1,2585.0,0.02]
[1751482196232,8.9689,2585.1,2585.0,0.02]
[1751482196977,12.8372223,2585.1,2585.0,0.02]
[1751482197133,8.9689,2585.1,2585.0,0.02]
[1751482197464,10.25259972,2585.1,2585.0,0.02]
[1751482198352,24.12092202,2585.1,2585.0,0.02]
[1751482198553,24.67092202,2585.1,2585.0,0.02]
[1751482199354,24.18419189,2585.1,2585.0,0.02]
[1751482200262,54.18419189,2585.1,2585.0,0.02]
[1751482200449,24.18419189,2585.1,2585.0,0.02]
[1751482200759,54.18419189,2585.1,2585.0,0.02]
[1751482201146,16.02419189,2585.1,2585.0,0.02]
[1751482201347,26.24219189,2585.1,2585.0,0.02]
[1751482202169,56.24219189,2585.1,2585.0,0.02]
[1751482202966,26.24219189,2585.1,2585.0,0.02]
[1751482203667,56.24219189,2585.1,2585.0,0.02]
[1751482205060,56.21219189,2585.1,2585.0,0.02]
[1751482205839,46.02419189,2585.1,2585.0,0.02]
[1751482206035,56.20919189,2585.1,2585.0,0.02]
[1751482206343,0.9501,2584.7,2584.6,0.02]
[1751482206670,34.26961979,2584.3,2584.2,0.02]
[1751482206962,52.33011539,2584.3,2584.2,0.02]
[1751482207535,22.33011539,2584.3,2584.2,0.02]
[1751482208334,0.4001,2583.3,2583.0,0.02]
[1751482208568,0.55,2583.2,2583.0,0.02]
[1751482208743,8.181,2583.1,2583.0,0.02]
[1751482208943,10.0,2583.4,2583.0,0.02]
[1751482209266,8.182,2583.3,2583.0,0.02]
[1751482209565,8.182,2583.3,2583.1,0.7827]
[1751482210056,8.183,2583.4,2583.1,0.7827]
[1751482210254,8.183,2583.5,2583.1,0.7827]
[1751482210454,8.182,2583.5,2583.1,0.7827]
[1751482210855,3.8695953,2584.3,2583.2,1.08027]
[1751482210856,2.048,2584.3,2583.2,1.08027]
[1751482211065,8.181,2584.2,2583.1,0.8327]
[1751482211249,2.048,2584.3,2583.3,4.70363922]
[1751482211576,8.184,2584.2,2583.5,0.8327]
[1751482211871,8.184,2584.1,2583.5,0.8327]
[1751482212577,2.048,2584.6,2583.5,4.7034161]
[1751482212783,0.4001,2584.7,2583.9,0.8327]
[1751482212949,8.18,2584.7,2583.9,0.8327]
[1751482214181,8.18,2584.7,2583.9,4.70280054]
[1751482214488,8.181,2584.6,2584.0,0.7793]
[1751482214658,8.181,2584.6,2584.0,2.24424999]
[1751482215057,8.181,2584.6,2584.0,0.7793]
[1751482217879,8.169,2584.6,2584.0,0.7793]
[1751482218389,0.1928,2584.4,2584.0,0.9721]
[1751482219851,0.1928,2584.3,2583.8,0.1928]
[1751482220057,0.4001,2584.5,2583.7,0.8315]
[1751482220367,0.1928,2584.0,2583.7,0.8315]
[1751482221086,0.1928,2583.8,2583.7,0.8315]
[1751482221284,2.4481,2584.8,2583.7,3.87030982]
[1751482221487,0.1928,2584.3,2583.8,0.9759]
[1751482221854,3.86922966,2584.5,2583.8,0.7831]
[1751482221855,3.86930968,2584.5,2583.8,0.7831]
[1751482222057,0.1928,2584.1,2583.8,0.7831]
[1751482223890,0.4001,2584.3,2583.6,0.8091]
[1751482224689,8.161,2584.2,2583.6,0.8091]
[1751482225070,8.16,2584.1,2583.6,0.8091]
[1751482225279,12.88589492,2584.1,2583.3,0.7537]
[1751482225589,12.88589492,2584.1,2583.0,2.068]
[1751482225590,0.4001,2583.9,2583.0,2.068]
[1751482225811,3.87069473,2583.6,2583.0,2.8217]
[1751482226088,3.87069473,2583.6,2583.0,0.02]
[1751482226089,0.55,2583.4,2583.0,0.02]
[1751482226491,8.167,2583.3,2583.0,0.02]
[1751482228164,0.79009661,2583.4,2583.0,0.02]
[1751482228364,23.09684636,2584.0,2583.0,0.02]
[1751482228365,8.16,2583.5,2583.0,0.02]
[1751482228590,8.976,2583.5,2583.0,0.02]
[1751482230188,8.165,2583.4,2583.1,0.7817]
[1751482230690,8.159,2583.5,2583.1,0.7817]
[1751482230900,0.79072851,2583.7,2583.1,0.7817]
[1751482231070,1.19082851,2584.1,2583.1,0.7817]
[1751482231403,8.161,2584.0,2583.1,0.7817]
[1751482231756,3.87005242,2584.0,2583.1,0.7817]
[1751482231981,8.161,2583.9,2583.1,0.7817]
[1751482232178,0.55,2584.0,2583.1,0.7817]
[1751482232382,8.161,2583.8,2583.1,0.7817]
[1751482232589,0.8161,2583.7,2583.1,0.7817]
[1751482232796,8.163,2583.7,2583.1,0.7817]
[1751482233812,0.1928,2583.2,2583.1,0.7817]
[1751482242016,0.8016687,2583.9,2583.1,0.7817]
[1751482242214,0.4001,2584.1,2583.1,0.7817]
[1751482242215,0.1928,2583.4,2583.1,0.7817]
[1751482242522,0.1928,2583.5,2583.1,1.27030412]
[1751482242887,8.134,2583.7,2583.1,0.7817]
[1751482243210,0.1928,2583.2,2583.1,0.7817]
[1751482246702,8.127,2583.6,2583.1,0.7817]
[1751482246895,8.3198,2583.6,2583.1,0.9745]
[1751482249097,0.1928,2583.4,2583.1,0.7817]
[1751482249998,0.02,2583.8,2583.1,12.35115]
[1751482250320,0.1928,2583.6,2583.1,12.54395]
[1751482250519,0.02,2583.8,2583.1,0.7817]
[1751482250697,0.1928,2583.4,2583.1,0.7817]
[1751482250898,0.1928,2583.5,2583.1,0.9745]
[1751482251230,0.1928,2583.5,2583.1,14.84576457]
[1751482251406,0.1928,2583.5,2583.2,0.8059]
[1751482251600,0.1928,2583.5,2583.3,1.48699646]
[1751482251801,0.02,2583.8,2583.4,0.8109]
[1751482252004,0.2128,2583.8,2583.4,1.0037]
[1751482253321,0.2128,2583.8,2583.4,11.0037]
[1751482253521,0.2128,2583.8,2583.4,12.63986961]
[1751482259325,0.02,2583.8,2583.6,0.7987]
[1751482259525,0.02,2583.8,2583.6,4.86205055]
[1751482259729,0.02,2583.8,2583.7,4.68971839]
[1751482260029,0.02,2583.8,2583.7,32.66424846]
[1751482260233,0.02,2583.8,2583.7,36.52302972]
[1751482260532,0.02,2583.8,2583.7,23.42129965]
[1751482260843,0.02,2583.8,2583.7,19.56251839]
[1751482261402,0.02,2583.8,2583.7,19.85881876]
[1751482262529,0.02,2583.8,2583.7,20.40881876]
[1751482262718,0.1928,2584.8,2584.2,10.8229]
[1751482263034,0.1928,2584.8,2584.3,3.86951327]
[1751482263234,0.1928,2584.8,2584.4,2.67734133]
[1751482263825,0.6129,2584.8,2584.4,0.1928]
[1751482264044,0.6129,2584.8,2583.6,2.29498495]
[1751482264045,0.4201,2584.3,2583.6,0.8276]
[1751482264239,0.1928,2583.7,2583.5,2.053]
[1751482264532,0.1928,2583.7,2583.3,0.8114]
[1751482266434,0.4201,2583.9,2583.2,0.1928]
[1751482266649,0.1928,2583.5,2583.2,0.1928]
[1751482268953,0.1928,2583.5,2583.2,0.49623]
[1751482272752,0.4201,2584.2,2583.3,3.87100513]
[1751482272951,0.1928,2583.9,2583.4,1.0018]
[1751482274852,0.1928,2583.9,2583.4,5.6818]
[1751482278658,0.1928,2583.9,2583.4,1.0018]
[1751482278859,0.1928,2583.9,2583.4,3.32853714]
[1751482279656,0.1928,2583.9,2583.5,10.0]
[1751482279858,0.1928,2583.9,2583.7,10.0]
[1751482282248,0.1928,2584.2,2583.8,1.0138]
[1751482282451,0.1928,2584.2,2583.8,2.50223064]
[1751482283164,0.1928,2584.2,2583.8,6.37248812]
[1751482283737,0.1928,2584.2,2583.8,2.50223064]
[1751482284045,0.6129,2584.7,2584.1,0.1928]
[1751482285961,0.1928,2584.7,2584.2,0.8092]
[1751482286162,0.02,2584.8,2584.5,0.1928]
[1751482286384,0.02,2584.8,2584.7,14.62952095]
[1751482286535,0.02,2584.8,2584.7,18.80883032]
[1751482286952,0.02,2584.8,2584.7,19.35883032]
[1751482287168,0.02,2585.7,2584.7,19.35883032]
[1751482287169,0.8282813,2586.3,2585.2,0.55]
[1751482287369,0.4601,2586.6,2585.3,3.51472364]
[1751482287370,0.8282813,2586.5,2585.3,3.51472364]
[1751482287569,0.1928,2585.9,2585.4,0.1928]
[1751482288077,0.4601,2586.1,2585.3,2.03]
[1751482288284,0.6529,2585.5,2585.1,0.1928]
[1751482288482,0.6529,2585.5,2584.9,2.03]
[1751482288483,0.4601,2585.5,2584.9,2.03]
[1751482288777,0.1928,2585.2,2584.9,2.03]
[1751482290238,4.32792955,2585.5,2584.6,0.8223]
[1751482290439,0.1928,2585.0,2584.8,2.03]
[1751482291560,3.86818712,2585.2,2584.5,2.03]
[1751482291739,0.1928,2584.8,2584.5,2.03]
[1751482292737,0.1928,2584.8,2584.3,0.1928]
[1751482292982,0.1928,2584.8,2584.3,2.2228]
[1751482293184,3.86863541,2584.9,2584.3,2.03]
[1751482293489,0.4601,2585.0,2584.0,0.7975]
[1751482293490,0.1928,2584.4,2584.0,0.1928]
[1751482293692,0.1928,2584.4,2583.7,1.06127978]
[1751482293693,0.1928,2584.1,2583.7,2.9975]
[1751482294058,0.1928,2584.1,2583.7,2.2228]
[1751482294254,0.4601,2584.3,2583.7,2.03]
[1751482294255,0.1928,2584.0,2583.7,2.03]
[1751482296073,0.1928,2584.0,2583.5,0.1928]
[1751482296296,3.86982878,2584.1,2583.5,2.025]
[1751482296497,0.1928,2583.7,2583.5,2.025]
[1751482297994,0.4601,2584.3,2583.5,2.025]
[1751482298191,0.1928,2584.0,2583.6,0.1928]
[1751482298391,0.1928,2584.0,2583.7,10.7626]
[1751482298598,0.4601,2584.7,2583.7,10.7626]
[1751482298599,0.1928,2584.4,2583.9,0.1928]
[1751482299269,0.1928,2584.4,2583.9,1.67538103]
[1751482302695,0.1928,2584.4,2583.9,0.1928]
[1751482304180,4.32910348,2584.7,2583.8,12.025]
[1751482304380,0.1928,2584.2,2583.8,12.025]
[1751482309816,0.4601,2584.7,2583.9,3.87005975]
[1751482310021,0.1928,2584.4,2583.9,0.1928]
[1751482310323,0.1928,2584.4,2583.9,2.26490155]
[1751482310623,0.1928,2584.4,2583.9,6.13500416]
[1751482311208,0.1928,2584.4,2583.9,2.26490155]
[1751482311397,0.1928,2584.4,2583.9,6.13501279]
[1751482311922,0.1928,2584.4,2583.9,2.26490155]
[1751482312092,0.1928,2584.4,2584.0,2.28600901]
[1751482312295,1.29320859,2585.0,2584.1,0.7658]
[1751482312503,0.1928,2585.0,2584.6,14.6347441]
[1751482312721,0.1928,2585.3,2584.8,4.06154388]
[1751482312921,0.1928,2585.3,2584.8,0.1928]
[1751482313327,0.1928,2585.3,2584.8,4.06149704]
[1751482313522,0.1928,2585.3,2584.8,0.1928]
[1751482315420,0.1928,2585.3,2584.8,4.06155185]
[1751482315626,0.01,2585.9,2585.2,10.0]
[1751482315841,0.01,2585.9,2585.6,10.0]
[1751482317020,0.01,2585.9,2585.5,10.1928]
[1751482317632,0.01,2585.9,2585.7,0.7863]
[1751482317835,0.01,2585.9,2585.8,0.1928]
[1751482318018,0.01,2585.9,2585.8,0.67746654]
[1751482318212,0.01,2585.9,2585.8,0.1928]
[1751482319034,0.01,2585.9,2585.5,14.68]
[1751482319259,0.01,2585.9,2585.7,2.025]
[1751482321915,0.01,2585.9,2585.6,2.025]
[1751482326406,0.01,2585.9,2585.5,0.1928]
[1751482326610,0.01,2585.9,2585.6,2.015]
[1751482327725,0.01,2585.9,2585.5,0.1928]
[1751482327927,0.01,2585.9,2585.6,2.015]
[1751482328247,0.01,2585.9,2585.5,0.1928]
[1751482328409,0.01,2585.9,2585.5,2.2078]
[1751482329263,0.4701,2585.9,2585.5,2.2078]
[1751482329616,0.4701,2585.9,2585.5,0.1928]
[1751482330946,0.01,2585.9,2585.6,0.7727]
[1751482335219,0.01,2585.9,2585.6,10.7727]
[1751482335555,0.01,2585.9,2585.8,0.1928]
[1751482335716,0.01,2585.9,2585.7,4.68]
[1751482338019,0.01,2585.9,2585.6,2.2078]
[1751482338443,0.01,2585.9,2585.6,2.015]
[1751482338649,0.01,2585.9,2585.3,0.1928]
[1751482338650,0.1928,2585.8,2585.3,0.1928]
[1751482338856,0.01,2585.9,2585.3,0.1928]
[1751482338857,0.1928,2585.5,2585.3,2.015]
[1751482339951,0.1928,2585.5,2585.1,0.7909]
[1751482340160,0.1928,2585.5,2585.0,0.1928]
[1751482340470,0.1928,2585.3,2585.1,2.015]
[1751482340826,0.4601,2585.7,2585.1,2.015]
[1751482341054,0.1928,2585.6,2585.2,0.1928]
[1751482343958,0.1928,2585.6,2585.3,0.7918]
[1751482345075,0.1928,2585.6,2585.3,2.8068]
[1751482345238,0.1928,2585.6,2585.2,0.1928]
[1751482349134,0.4601,2585.5,2585.1,4.68]
[1751482349335,0.1928,2585.3,2585.1,4.68]
[1751482350749,0.4601,2585.7,2585.1,4.68]
[1751482350961,0.1928,2585.5,2585.1,4.68]
[1751482351168,0.1928,2585.5,2585.1,5.3971523]
[1751482351363,0.1928,2585.5,2585.2,0.8039]
[1751482351567,0.01,2585.9,2585.2,0.8039]
[1751482351568,0.4701,2585.9,2585.2,0.8039]
[1751482351865,0.1928,2585.6,2585.2,0.9967]
[1751482356055,0.1928,2585.6,2585.2,0.1928]
[1751482361565,0.1928,2585.6,2585.2,2.2058]
[1751482362483,4.33729053,2585.9,2585.2,2.013]
[1751482362660,0.1928,2585.4,2585.2,2.013]
[1751482363297,0.4701,2585.9,2585.2,2.013]
[1751482363489,0.1928,2585.6,2585.2,2.2058]
[1751482368671,0.1928,2585.6,2585.3,0.7618]
[1751482371604,0.1928,2585.6,2585.3,0.75797574]
[1751482374906,0.1928,2585.6,2585.2,2.2058]
[1751482375108,0.1928,2585.5,2585.2,2.013]
[1751482375491,0.1928,2585.5,2585.1,0.787]
[1751482375700,0.1928,2585.5,2585.2,2.013]
[1751482377317,0.1928,2585.5,2585.2,2.70111337]
[1751482379330,0.1928,2585.5,2585.2,2.013]
[1751482380210,0.1928,2585.5,2585.1,0.787]
[1751482380409,0.1928,2585.5,2585.2,2.013]
[1751482381003,0.1928,2585.5,2585.1,2.033]
[1751482385103,0.4639,2585.6,2585.1,0.02]
[1751482385303,0.4639,2585.4,2585.1,0.02]
[1751482386131,0.1928,2585.7,2585.2,9.19779729]
[1751482386314,0.82556035,2585.6,2585.5,10.1928]
[1751482386513,0.1928,2585.8,2585.4,12.013]
[1751482387117,0.01,2585.9,2585.5,0.8158]
[1751482387310,0.01,2585.9,2585.5,1.0086]
[1751482387526,0.01,2585.9,2585.5,9.39509729]
[1751482387823,0.01,2585.9,2585.7,0.1928]
[1751482388612,0.01,2585.9,2585.7,2.2028]
[1751482389133,0.01,2585.9,2585.6,2.01]
[1751482393829,0.01,2585.9,2585.6,2.009]
[1751482394234,0.4639,2585.8,2585.6,2.009]
[1751482394435,0.1928,2585.7,2585.5,4.68]
[1751482395334,0.1928,2585.7,2585.4,2.009]
[1751482395514,0.01,2585.9,2585.4,2.009]
[1751482395837,0.1928,2585.6,2585.4,2.009]
[1751482396235,0.01,2585.9,2585.5,0.7502]
[1751482396439,0.1928,2585.8,2585.5,0.7502]
[1751482397733,0.1928,2585.8,2585.4,2.009]
[1751482401709,0.01,2585.8,2585.4,2.2018]
[1751482402334,0.01,2585.8,2585.1,0.7855]
[1751482402516,0.1928,2585.6,2585.3,2.009]
[1751482403517,0.01,2585.8,2585.3,3.30773]
[1751482403835,0.2028,2585.8,2585.4,1.0076]
[1751482404042,0.01,2585.8,2585.4,19.20129729]
[1751482404243,0.01,2585.8,2585.7,0.7599]
[1751482405512,0.01,2585.8,2585.7,23.49585666]
[1751482405715,0.01,2585.8,2585.7,19.62843198]
[1751482406108,0.82372261,2587.1,2586.3,0.7599]
[1751482406304,0.4639,2587.5,2585.7,18.16153198]
[1751482406305,0.82372261,2587.4,2586.8,10.7599]
[1751482406532,0.4639,2587.8,2586.8,20.8199]
[1751482406738,0.4639,2587.8,2587.1,10.0]
[1751482406909,0.4639,2588.2,2587.2,8.051]
[1751482407240,0.4639,2588.2,2587.5,10.0]
[1751482407532,0.6809752,2588.3,2587.6,10.06]
[1751482408105,0.6809752,2588.3,2587.3,10.7599]
[1751482408305,0.6809752,2588.3,2586.0,3.86683751]
[1751482408306,30.4639,2586.4,2585.0,7.7731516]
[1751482408530,13.05977084,2586.1,2585.0,0.02]
[1751482408731,0.55,2586.1,2585.0,0.02]
[1751482408941,0.4639,2586.2,2585.2,0.8022]
[1751482409266,0.55,2586.1,2585.2,0.8022]
[1751482409406,0.4639,2586.2,2585.0,0.02]
[1751482409611,3.86765715,2585.6,2585.0,0.02]
[1751482411114,3.86802305,2585.3,2585.0,0.02]
[1751482411316,3.86817267,2585.2,2585.0,0.02]
[1751482412342,3.8680671,2585.3,2585.0,0.02]
[1751482412744,3.86817267,2585.2,2585.0,0.02]
[1751482413144,4.41817267,2585.2,2585.0,0.02]
[1751482413332,4.90637994,2585.2,2585.0,0.02]
[1751482414524,14.90637994,2585.2,2585.0,0.02]
[1751482414723,45.82923951,2585.2,2585.0,0.02]
[1751482414928,3.8683223,2585.1,2585.0,0.02]
[1751482415129,34.79118187,2585.1,2585.0,0.02]
[1751482415328,39.35450611,2585.1,2585.0,0.02]
[1751482417319,9.35450611,2585.1,2585.0,0.02]
[1751482417519,39.35450611,2585.1,2585.0,0.02]
[1751482418418,39.63781658,2585.1,2585.0,0.02]
[1751482418943,3.86951979,2584.3,2584.2,0.02]
[1751482419328,4.25647177,2584.3,2584.2,0.02]
[1751482419721,0.38695198,2584.3,2584.2,0.02]
[1751482419922,4.25647177,2584.3,2584.2,0.02]
[1751482422825,0.38695198,2584.3,2584.2,0.02]
[1751482423025,4.25647177,2584.3,2584.2,0.02]
[1751482423550,4.80647177,2584.3,2584.2,0.02]
[1751482423756,14.80647177,2584.3,2584.2,0.02]
[1751482425355,15.72418257,2584.3,2584.2,0.02]
[1751482425661,22.93647177,2584.3,2584.2,0.02]
[1751482426026,23.8541484,2584.3,2584.2,0.02]
[1751482426226,22.93647177,2584.3,2584.2,0.02]
[1751482426428,23.85415938,2584.3,2584.2,0.02]
[1751482427447,22.93647177,2584.3,2584.2,0.02]
[1751482428041,52.93647177,2584.3,2584.2,0.02]
[1751482428236,53.85354661,2584.3,2584.2,0.02]
[1751482429769,45.72354661,2584.3,2584.2,0.02]
[1751482429967,23.84754661,2584.3,2584.2,0.02]
[1751482431036,15.72354661,2584.3,2584.2,0.02]
[1751482431238,22.92347177,2584.3,2584.2,0.02]
[1751482431970,23.83991534,2584.3,2584.2,0.02]
[1751482432375,53.83991534,2584.3,2584.2,0.02]